[Event "*** Titled Tuesday Blitz"]
[Site "Chess.com"]
[Date "2020.05.19"]
[Round "6"]
[White "SharapovEvgeny"]
[Black "garfield_pg"]
[Result "1-0"]
[WhiteElo "2377"]
[BlackElo "2160"]
[TimeControl "180+1"]
[EndTime "13:08:59 PDT"]
[Termination "SharapovEvgeny won on time"]

1. e4 {[%clk 0:02:59.3]} 1... c5 {[%clk 0:02:57.8]} 2. Nf3 {[%clk 0:02:58.7]}
2... a6 {[%clk 0:02:57.7]} 3. d4 {[%clk 0:02:58.6]} 3... cxd4 {[%clk 0:02:58.6]}
4. Nxd4 {[%clk 0:02:58.8]} 4... Nf6 {[%clk 0:02:59.3]} 5. Nc3 {[%clk 0:02:58.1]}
5... e5 {[%clk 0:02:59.8]} 6. Nb3 {[%clk 0:02:55.4]} 6... Bb4 {[%clk 0:02:59.6]}
7. Bd2 {[%clk 0:02:50.8]} 7... Nc6 {[%clk 0:02:58.8]} 8. Bd3 {[%clk 0:02:43.8]}
8... O-O {[%clk 0:02:59.3]} 9. O-O {[%clk 0:02:42.7]} 9... d5 {[%clk 0:02:59.8]}
10. Nxd5 {[%clk 0:02:40.5]} 10... Nxd5 {[%clk 0:03:00.7]} 11. exd5 {[%clk
0:02:38.7]} 11... Qxd5 {[%clk 0:03:00.3]} 12. Qe2 {[%clk 0:02:30.6]} 12... Bxd2
{[%clk 0:02:58.4]} 13. Qxd2 {[%clk 0:02:25.7]} 13... e4 {[%clk 0:02:14]} 14. Be2
{[%clk 0:02:24.3]} 14... Qxd2 {[%clk 0:02:12.1]} 15. Nxd2 {[%clk 0:02:24.1]}
15... Nd4 {[%clk 0:01:50.8]} 16. Bd1 {[%clk 0:02:23.2]} 16... f5 {[%clk
0:01:45.1]} 17. c3 {[%clk 0:02:22.4]} 17... Nc6 {[%clk 0:01:44.3]} 18. Bb3+
{[%clk 0:02:21.3]} 18... Kh8 {[%clk 0:01:43.2]} 19. Nc4 {[%clk 0:02:17.8]} 19...
b5 {[%clk 0:01:39.3]} 20. Nd6 {[%clk 0:02:15.7]} 20... Ne5 {[%clk 0:01:33.6]}
21. f4 {[%clk 0:02:08.9]} 21... exf3 {[%clk 0:01:03.9]} 22. Rfe1 {[%clk
0:02:04.8]} 22... f2+ {[%clk 0:00:59.5]} 23. Kxf2 {[%clk 0:02:04.5]} 23... Nd3+
{[%clk 0:00:59.8]} 24. Kf1 {[%clk 0:02:01]} 24... Nxe1 {[%clk 0:00:59.3]} 25.
Rxe1 {[%clk 0:01:58.6]} 25... Ra7 {[%clk 0:00:38.7]} 26. Nf7+ {[%clk 0:01:53.3]}
26... Raxf7 {[%clk 0:00:28.9]} 27. Bxf7 {[%clk 0:01:51.8]} 27... g6 {[%clk
0:00:27.2]} 28. Re7 {[%clk 0:01:49.2]} 28... f4 {[%clk 0:00:20.1]} 29. Kf2
{[%clk 0:01:47]} 29... Bg4 {[%clk 0:00:16.7]} 30. Be6 {[%clk 0:01:40.9]} 30...
Bxe6 {[%clk 0:00:16.1]} 31. Rxe6 {[%clk 0:01:40.6]} 31... a5 {[%clk 0:00:15.7]}
32. Ra6 {[%clk 0:01:28.4]} 32... b4 {[%clk 0:00:15.4]} 33. Rxa5 {[%clk
0:01:27.3]} 33... bxc3 {[%clk 0:00:15.5]} 34. bxc3 {[%clk 0:01:27.5]} 34... Rc8
{[%clk 0:00:13.7]} 35. Ra3 {[%clk 0:01:26.5]} 35... Kg7 {[%clk 0:00:14.1]} 36.
Rb3 {[%clk 0:01:26.1]} 36... Kf6 {[%clk 0:00:13.8]} 37. a4 {[%clk 0:01:26.1]}
37... Ra8 {[%clk 0:00:11.3]} 38. Ra3 {[%clk 0:01:25.7]} 38... Ra5 {[%clk
0:00:11.7]} 39. Ke2 {[%clk 0:01:25.4]} 39... Ke5 {[%clk 0:00:11.8]} 40. Kd3
{[%clk 0:01:25.4]} 40... g5 {[%clk 0:00:11.8]} 41. Kc4 {[%clk 0:01:24.9]} 41...
g4 {[%clk 0:00:11.2]} 42. Kb4 {[%clk 0:01:25]} 42... Ra8 {[%clk 0:00:11.4]} 43.
a5 {[%clk 0:01:24.6]} 43... Ke4 {[%clk 0:00:11.5]} 44. a6 {[%clk 0:01:23.1]}
44... f3 {[%clk 0:00:12]} 45. gxf3+ {[%clk 0:01:23.4]} 45... gxf3 {[%clk
0:00:12.9]} 46. Kb5 {[%clk 0:01:23.5]} 46... f2 {[%clk 0:00:12]} 47. Ra1 {[%clk
0:01:23]} 47... Rb8+ {[%clk 0:00:11.7]} 48. Kc6 {[%clk 0:01:22.5]} 48... Rc8+
{[%clk 0:00:11.7]} 49. Kb7 {[%clk 0:01:21.2]} 49... Rxc3 {[%clk 0:00:04.8]} 50.
a7 {[%clk 0:01:18.6]} 50... Rb3+ {[%clk 0:00:04]} 51. Kc7 {[%clk 0:01:18.1]}
51... Rc3+ {[%clk 0:00:01.8]} 52. Kd7 {[%clk 0:01:18.1]} 52... Rd3+ {[%clk
0:00:02.4]} 53. Ke7 {[%clk 0:01:18]} 53... Ra3 {[%clk 0:00:02.8]} 54. Rxa3
{[%clk 0:01:15.5]} 54... f1=Q {[%clk 0:00:03.5]} 55. a8=Q+ {[%clk 0:01:14.9]}
1-0

[Event "*** Titled Tuesday Blitz"]
[Site "Chess.com"]
[Date "2020.05.19"]
[Round "6"]
[White "MarcoRiehle"]
[Black "LiamVrolijk"]
[Result "1-0"]
[WhiteElo "2657"]
[BlackElo "2808"]
[TimeControl "180+1"]
[EndTime "13:09:01 PDT"]
[Termination "MarcoRiehle won by resignation"]

1. e4 {[%clk 0:03:00.9]} 1... e5 {[%clk 0:02:59.8]} 2. Nf3 {[%clk 0:03:00.4]}
2... Nc6 {[%clk 0:03:00.4]} 3. Bc4 {[%clk 0:03:00.3]} 3... Bc5 {[%clk
0:03:00.2]} 4. O-O {[%clk 0:03:00]} 4... Nf6 {[%clk 0:02:59.7]} 5. d4 {[%clk
0:03:00]} 5... Bxd4 {[%clk 0:02:59.7]} 6. Nxd4 {[%clk 0:02:59.8]} 6... Nxd4
{[%clk 0:03:00.6]} 7. Bg5 {[%clk 0:03:00]} 7... h6 {[%clk 0:02:47.1]} 8. Bh4
{[%clk 0:02:58.9]} 8... d6 {[%clk 0:02:45.2]} 9. f4 {[%clk 0:02:59.1]} 9... Bg4
{[%clk 0:02:42.1]} 10. Bxf6 {[%clk 0:02:54.7]} 10... Bxd1 {[%clk 0:02:39.7]} 11.
Bxd8 {[%clk 0:02:55]} 11... Rxd8 {[%clk 0:02:32.3]} 12. Rxd1 {[%clk 0:02:53.6]}
12... Nxc2 {[%clk 0:02:27.6]} 13. Nc3 {[%clk 0:02:53.6]} 13... Nxa1 {[%clk
0:02:27.4]} 14. Rxa1 {[%clk 0:02:54.5]} 14... exf4 {[%clk 0:02:27.8]} 15. Nd5
{[%clk 0:02:53.3]} 15... Kd7 {[%clk 0:02:20.8]} 16. Nxf4 {[%clk 0:02:51]} 16...
Rhe8 {[%clk 0:02:21.3]} 17. Bd3 {[%clk 0:02:30.3]} 17... Re5 {[%clk 0:02:18]}
18. Rf1 {[%clk 0:02:29.2]} 18... c6 {[%clk 0:02:13.3]} 19. g3 {[%clk 0:02:24.2]}
19... Kc7 {[%clk 0:02:11.3]} 20. Kg2 {[%clk 0:02:22.8]} 20... Rd7 {[%clk
0:02:10]} 21. h4 {[%clk 0:02:20.6]} 21... g5 {[%clk 0:02:06.2]} 22. hxg5 {[%clk
0:02:17.2]} 22... hxg5 {[%clk 0:02:07.1]} 23. Nh5 {[%clk 0:02:17.3]} 23... Rde7
{[%clk 0:01:59.5]} 24. Nf6 {[%clk 0:02:02.5]} 24... Kb6 {[%clk 0:01:54.8]} 25.
Rf3 {[%clk 0:01:52]} 25... a5 {[%clk 0:01:53.4]} 26. Bc2 {[%clk 0:01:51.2]}
26... Ka6 {[%clk 0:01:50.5]} 27. Bd3+ {[%clk 0:01:50.4]} 27... Ka7 {[%clk
0:01:50.3]} 28. Rf1 {[%clk 0:01:49.3]} 28... b5 {[%clk 0:01:50.5]} 29. Rh1
{[%clk 0:01:47]} 29... R5e6 {[%clk 0:01:46.2]} 30. Ng4 {[%clk 0:01:41.5]} 30...
Kb6 {[%clk 0:01:37.4]} 31. Rh5 {[%clk 0:01:40.2]} 31... Kc5 {[%clk 0:01:22.3]}
32. Rxg5+ {[%clk 0:01:37.5]} 32... Kd4 {[%clk 0:01:22.6]} 33. Nf2 {[%clk
0:01:25.8]} 33... Rg6 {[%clk 0:01:20.7]} 34. Rf5 {[%clk 0:01:25.7]} 34... f6
{[%clk 0:01:02.5]} 35. Rf3 {[%clk 0:01:17.7]} 35... Re5 {[%clk 0:00:56.1]} 36.
Bb1 {[%clk 0:01:17.5]} 36... Reg5 {[%clk 0:00:55.2]} 37. e5 {[%clk 0:01:14.7]}
37... dxe5 {[%clk 0:00:45.4]} 38. Bxg6 {[%clk 0:01:13.8]} 38... Rxg6 {[%clk
0:00:46.3]} 39. Rd3+ {[%clk 0:01:12]} 39... Kc4 {[%clk 0:00:46.8]} 40. Rd6
{[%clk 0:01:04.2]} 40... c5 {[%clk 0:00:43.4]} 41. Ne4 {[%clk 0:01:01.4]} 41...
a4 {[%clk 0:00:43.8]} 42. Rxf6 {[%clk 0:00:58.3]} 42... Rg8 {[%clk 0:00:43.1]}
43. Rd6 {[%clk 0:00:55.1]} 43... b4 {[%clk 0:00:39.8]} 44. Nd2+ {[%clk
0:00:53.4]} 44... Kb5 {[%clk 0:00:40]} 45. b3 {[%clk 0:00:53.8]} 45... axb3
{[%clk 0:00:39.4]} 46. axb3 {[%clk 0:00:54.7]} 46... e4 {[%clk 0:00:34.7]} 47.
Nc4 {[%clk 0:00:53.1]} 47... Rb8 {[%clk 0:00:25.1]} 48. Kf2 {[%clk 0:00:52.7]}
48... e3+ {[%clk 0:00:25.6]} 49. Ke2 {[%clk 0:00:52.9]} 49... Rb7 {[%clk
0:00:23.4]} 50. g4 {[%clk 0:00:52.8]} 50... Rb8 {[%clk 0:00:23.1]} 51. g5 {[%clk
0:00:53]} 51... Rb7 {[%clk 0:00:24]} 52. g6 {[%clk 0:00:51.5]} 52... Rb8 {[%clk
0:00:24.9]} 53. g7 {[%clk 0:00:51.1]} 53... Rb7 {[%clk 0:00:24.9]} 54. g8=Q
{[%clk 0:00:48.6]} 1-0

[Event "*** Titled Tuesday Blitz"]
[Site "Chess.com"]
[Date "2020.05.19"]
[Round "6"]
[White "spectralsoul"]
[Black "BanjoKazooieN64"]
[Result "1-0"]
[WhiteElo "2844"]
[BlackElo "2540"]
[TimeControl "180+1"]
[EndTime "13:09:03 PDT"]
[Termination "spectralsoul won by resignation"]

1. Nf3 {[%clk 0:03:00.9]} 1... Nf6 {[%clk 0:02:59.5]} 2. g3 {[%clk 0:03:00.2]}
2... d5 {[%clk 0:02:59.8]} 3. Bg2 {[%clk 0:03:00.4]} 3... Bf5 {[%clk 0:02:59.8]}
4. O-O {[%clk 0:03:01.3]} 4... e6 {[%clk 0:02:59.6]} 5. c4 {[%clk 0:03:02.2]}
5... c6 {[%clk 0:02:59.2]} 6. cxd5 {[%clk 0:03:02.7]} 6... exd5 {[%clk
0:02:59.1]} 7. d3 {[%clk 0:03:03.2]} 7... h6 {[%clk 0:02:59]} 8. Qb3 {[%clk
0:03:03.5]} 8... Qb6 {[%clk 0:02:58.9]} 9. Qc2 {[%clk 0:03:04]} 9... Be7 {[%clk
0:02:57.7]} 10. Nc3 {[%clk 0:03:04.3]} 10... O-O {[%clk 0:02:57.5]} 11. e4
{[%clk 0:03:04.7]} 11... Bh7 {[%clk 0:02:56.7]} 12. Be3 {[%clk 0:03:05]} 12...
Qd8 {[%clk 0:02:55.7]} 13. h3 {[%clk 0:03:04.6]} 13... Na6 {[%clk 0:02:54]} 14.
a3 {[%clk 0:03:05.1]} 14... Bc5 {[%clk 0:02:48]} 15. Bd2 {[%clk 0:02:56.4]}
15... Re8 {[%clk 0:02:40.5]} 16. Rae1 {[%clk 0:02:30.3]} 16... Rc8 {[%clk
0:02:36.6]} 17. Kh2 {[%clk 0:02:27.2]} 17... Bf8 {[%clk 0:02:25.5]} 18. b4
{[%clk 0:02:25.9]} 18... b5 {[%clk 0:02:13.8]} 19. Qb1 {[%clk 0:02:02]} 19... d4
{[%clk 0:02:13.1]} 20. Ne2 {[%clk 0:02:00.4]} 20... c5 {[%clk 0:02:05.1]} 21.
bxc5 {[%clk 0:02:00.2]} 21... Nxc5 {[%clk 0:01:59.7]} 22. Nexd4 {[%clk
0:01:51.5]} 22... a6 {[%clk 0:02:00.2]} 23. Bb4 {[%clk 0:01:44.3]} 23... Rc7
{[%clk 0:01:59.2]} 24. Ba5 {[%clk 0:01:37.5]} 24... Ree7 {[%clk 0:01:56.4]} 25.
Rc1 {[%clk 0:01:27.1]} 25... Red7 {[%clk 0:01:55.1]} 26. Bxc7 {[%clk 0:01:23.4]}
26... Qxc7 {[%clk 0:01:53.1]} 27. Nb3 {[%clk 0:01:21.7]} 27... Qb6 {[%clk
0:01:53.4]} 28. Nxc5 {[%clk 0:01:21.8]} 28... Bxc5 {[%clk 0:01:53.8]} 29. Qa2
{[%clk 0:00:59.9]} 29... Rd8 {[%clk 0:01:53.2]} 30. Ne5 {[%clk 0:00:59.1]} 30...
Rf8 {[%clk 0:01:42.6]} 31. f4 {[%clk 0:00:58.4]} 31... Be3 {[%clk 0:01:40]} 32.
Rc6 {[%clk 0:00:56.6]} 32... Qb7 {[%clk 0:01:40.2]} 33. Re1 {[%clk 0:00:49.5]}
33... Bd4 {[%clk 0:01:38.4]} 34. Rec1 {[%clk 0:00:49.7]} 34... a5 {[%clk
0:01:37.7]} 35. Rc7 {[%clk 0:00:49]} 35... Qb8 {[%clk 0:01:33]} 36. Rxf7 {[%clk
0:00:48.6]} 36... Kh8 {[%clk 0:01:33.3]} 37. Rxf8+ {[%clk 0:00:46.3]} 37... Qxf8
{[%clk 0:01:33.4]} 38. Nf7+ {[%clk 0:00:46.4]} 38... Kg8 {[%clk 0:01:33.9]} 39.
Nxh6+ {[%clk 0:00:46.9]} 39... Kh8 {[%clk 0:01:34.3]} 40. Nf7+ {[%clk
0:00:47.4]} 40... Kg8 {[%clk 0:01:34.9]} 41. Ng5+ {[%clk 0:00:47.9]} 41... Kh8
{[%clk 0:01:35.4]} 42. Ne6 {[%clk 0:00:47.9]} 42... Qg8 {[%clk 0:01:29.1]} 43.
f5 {[%clk 0:00:41.6]} 43... b4 {[%clk 0:01:28.2]} 44. axb4 {[%clk 0:00:40.1]}
44... axb4 {[%clk 0:01:29.1]} 45. Rc7 {[%clk 0:00:35]} 45... Nh5 {[%clk
0:01:25.4]} 46. Qe2 {[%clk 0:00:30.4]} 46... Nxg3 {[%clk 0:01:22.9]} 47. Qc2
{[%clk 0:00:16.8]} 47... Bc3 {[%clk 0:01:08.1]} 48. Rxc3 {[%clk 0:00:14]} 48...
bxc3 {[%clk 0:01:08]} 49. Kxg3 {[%clk 0:00:14.2]} 49... Qc8 {[%clk 0:01:07.8]}
50. Kf2 {[%clk 0:00:08.1]} 50... Bg8 {[%clk 0:01:07.9]} 51. Nf4 {[%clk
0:00:07.8]} 51... Qc5+ {[%clk 0:01:06.9]} 52. Kf3 {[%clk 0:00:08.2]} 52... Qb4
{[%clk 0:01:05.6]} 53. Ne2 {[%clk 0:00:08.3]} 53... Qb6 {[%clk 0:01:01.2]} 54.
Qxc3 {[%clk 0:00:08]} 54... Qf2+ {[%clk 0:01:01.3]} 55. Kxf2 {[%clk 0:00:07.8]}
1-0

[Event "*** Titled Tuesday Blitz"]
[Site "Chess.com"]
[Date "2020.05.19"]
[Round "6"]
[White "YellowJacek"]
[Black "TurboSteen"]
[Result "1-0"]
[WhiteElo "2295"]
[BlackElo "1992"]
[TimeControl "180+1"]
[EndTime "13:09:05 PDT"]
[Termination "YellowJacek won on time"]

1. e4 {[%clk 0:02:54.6]} 1... e6 {[%clk 0:02:57.5]} 2. d4 {[%clk 0:02:49]} 2...
d5 {[%clk 0:02:55.7]} 3. Nc3 {[%clk 0:02:49]} 3... Bb4 {[%clk 0:02:49.6]} 4. e5
{[%clk 0:02:48.2]} 4... Ne7 {[%clk 0:02:48]} 5. a3 {[%clk 0:02:42.6]} 5... Bxc3+
{[%clk 0:02:47.5]} 6. bxc3 {[%clk 0:02:43.5]} 6... c5 {[%clk 0:02:47.2]} 7. Qg4
{[%clk 0:02:42.9]} 7... Qc7 {[%clk 0:02:46.1]} 8. Bd3 {[%clk 0:02:42.5]} 8... c4
{[%clk 0:02:42.8]} 9. Be2 {[%clk 0:02:36.8]} 9... Nf5 {[%clk 0:02:08.5]} 10. Bd1
{[%clk 0:02:28.5]} 10... Nc6 {[%clk 0:01:48.4]} 11. Ne2 {[%clk 0:02:26.8]} 11...
O-O {[%clk 0:01:43.5]} 12. Ng3 {[%clk 0:02:26]} 12... Qa5 {[%clk 0:01:36.5]} 13.
Bd2 {[%clk 0:02:23.6]} 13... f6 {[%clk 0:01:33.7]} 14. exf6 {[%clk 0:02:05.5]}
14... Rxf6 {[%clk 0:01:30.1]} 15. Nxf5 {[%clk 0:02:01.5]} 15... exf5 {[%clk
0:01:23.1]} 16. Qf4 {[%clk 0:01:59.2]} 16... Bd7 {[%clk 0:01:15.8]} 17. O-O
{[%clk 0:01:58]} 17... Re8 {[%clk 0:01:11.9]} 18. Bf3 {[%clk 0:01:51.1]} 18...
h6 {[%clk 0:01:05.7]} 19. h4 {[%clk 0:01:41.7]} 19... Nd8 {[%clk 0:00:53.1]} 20.
a4 {[%clk 0:01:29.3]} 20... Ne6 {[%clk 0:00:49.5]} 21. Qd6 {[%clk 0:01:05.7]}
21... Bc6 {[%clk 0:00:44.4]} 22. Rfe1 {[%clk 0:00:54.7]} 22... Kh7 {[%clk
0:00:36.7]} 23. Qa3 {[%clk 0:00:21.7]} 23... Nxd4 {[%clk 0:00:32.5]} 24. cxd4
{[%clk 0:00:21.2]} 24... Qxd2 {[%clk 0:00:28.7]} 25. Rxe8 {[%clk 0:00:21]} 25...
Bxe8 {[%clk 0:00:26.3]} 26. Bxd5 {[%clk 0:00:21.5]} 26... Qxd4 {[%clk
0:00:25.3]} 27. Bxb7 {[%clk 0:00:21.4]} 27... f4 {[%clk 0:00:22.2]} 28. Bf3
{[%clk 0:00:19.5]} 28... g5 {[%clk 0:00:18.2]} 29. hxg5 {[%clk 0:00:18.6]} 29...
hxg5 {[%clk 0:00:16.8]} 30. Rd1 {[%clk 0:00:19.5]} 30... Qe5 {[%clk 0:00:11.2]}
31. Qb4 {[%clk 0:00:18.1]} 31... Bf7 {[%clk 0:00:09.6]} 32. Re1 {[%clk
0:00:16.3]} 32... Qf5 {[%clk 0:00:08.1]} 33. Qe7 {[%clk 0:00:13.9]} 33... Kg6
{[%clk 0:00:03.1]} 34. Be4 {[%clk 0:00:14]} 1-0

[Event "*** Titled Tuesday Blitz"]
[Site "Chess.com"]
[Date "2020.05.19"]
[Round "6"]
[White "Luibov_AN"]
[Black "allvim"]
[Result "1-0"]
[WhiteElo "2087"]
[BlackElo "2255"]
[TimeControl "180+1"]
[EndTime "13:09:05 PDT"]
[Termination "Luibov_AN won by checkmate"]

1. d4 {[%clk 0:02:27.8]} 1... Nf6 {[%clk 0:02:55.8]} 2. Nf3 {[%clk 0:02:25.5]}
2... d5 {[%clk 0:02:55.3]} 3. c4 {[%clk 0:02:25.2]} 3... e6 {[%clk 0:02:55.9]}
4. Nc3 {[%clk 0:02:25.2]} 4... Be7 {[%clk 0:02:56.4]} 5. e3 {[%clk 0:02:25.4]}
5... O-O {[%clk 0:02:56.7]} 6. Qc2 {[%clk 0:02:25.4]} 6... a6 {[%clk 0:02:57]}
7. b3 {[%clk 0:02:25]} 7... b6 {[%clk 0:02:55.8]} 8. Bd3 {[%clk 0:02:25.3]} 8...
Bb7 {[%clk 0:02:56.2]} 9. O-O {[%clk 0:02:24.2]} 9... Nbd7 {[%clk 0:02:56.6]}
10. Ne5 {[%clk 0:02:20.7]} 10... Rc8 {[%clk 0:02:55.9]} 11. cxd5 {[%clk
0:02:15.6]} 11... exd5 {[%clk 0:02:54.7]} 12. Qe2 {[%clk 0:02:14.2]} 12... b5
{[%clk 0:02:34.6]} 13. Bb2 {[%clk 0:02:04.8]} 13... c5 {[%clk 0:02:33]} 14. Rac1
{[%clk 0:02:01.1]} 14... Bd6 {[%clk 0:02:16.6]} 15. f4 {[%clk 0:01:59.5]} 15...
Qb6 {[%clk 0:02:09.4]} 16. Nd1 {[%clk 0:01:48.2]} 16... c4 {[%clk 0:02:05.3]}
17. Bf5 {[%clk 0:01:45.4]} 17... Rcd8 {[%clk 0:01:59.8]} 18. g4 {[%clk
0:01:42.1]} 18... Bxe5 {[%clk 0:01:58.5]} 19. dxe5 {[%clk 0:01:38.3]} 19... Ne4
{[%clk 0:01:46.8]} 20. Bd4 {[%clk 0:01:38]} 20... Qc7 {[%clk 0:01:16.9]} 21. g5
{[%clk 0:01:19.9]} 21... Ndc5 {[%clk 0:01:11.1]} 22. b4 {[%clk 0:01:09.9]} 22...
Na4 {[%clk 0:00:53.5]} 23. Qg4 {[%clk 0:01:01.1]} 23... Bc8 {[%clk 0:00:39.7]}
24. Bxc8 {[%clk 0:00:56.5]} 24... Qxc8 {[%clk 0:00:37.6]} 25. f5 {[%clk
0:00:53.9]} 25... g6 {[%clk 0:00:16.4]} 26. Qh3 {[%clk 0:00:33.6]} 26... Nxg5
{[%clk 0:00:13.1]} 27. Qg4 {[%clk 0:00:32.8]} 27... Ne4 {[%clk 0:00:13.2]} 28.
Rf4 {[%clk 0:00:31.9]} 28... Qd7 {[%clk 0:00:06.2]} 29. Nf2 {[%clk 0:00:30.6]}
29... Nxf2 {[%clk 0:00:06]} 30. Rxf2 {[%clk 0:00:30.4]} 30... Rfe8 {[%clk
0:00:05.2]} 31. Rcf1 {[%clk 0:00:29.7]} 31... Kf8 {[%clk 0:00:01.7]} 32. Qh4
{[%clk 0:00:28.6]} 32... h5 {[%clk 0:00:01.7]} 33. Qg5 {[%clk 0:00:26.6]} 33...
Kg7 {[%clk 0:00:01.9]} 34. e6+ {[%clk 0:00:25.7]} 34... Kh7 {[%clk 0:00:02.5]}
35. exd7 {[%clk 0:00:24.2]} 35... Rxd7 {[%clk 0:00:03.4]} 36. fxg6+ {[%clk
0:00:24.3]} 36... fxg6 {[%clk 0:00:04]} 37. Rf7+ {[%clk 0:00:24.6]} 37... Rxf7
{[%clk 0:00:04.8]} 38. Rxf7+ {[%clk 0:00:25.5]} 38... Kg8 {[%clk 0:00:05.3]} 39.
Qxg6# {[%clk 0:00:25.7]} 1-0

[Event "*** Titled Tuesday Blitz"]
[Site "Chess.com"]
[Date "2020.05.19"]
[Round "6"]
[White "Baby_Legs"]
[Black "Alexander_Zubov"]
[Result "0-1"]
[WhiteElo "2712"]
[BlackElo "2942"]
[TimeControl "180+1"]
[EndTime "13:09:06 PDT"]
[Termination "Alexander_Zubov won by resignation"]

1. Nf3 {[%clk 0:03:00.9]} 1... Nf6 {[%clk 0:02:59.2]} 2. e3 {[%clk 0:03:01.2]}
2... g6 {[%clk 0:02:55.2]} 3. d4 {[%clk 0:03:00.1]} 3... Bg7 {[%clk 0:02:55.7]}
4. c4 {[%clk 0:03:00.6]} 4... O-O {[%clk 0:02:55.3]} 5. Be2 {[%clk 0:03:01]}
5... c5 {[%clk 0:02:53.8]} 6. d5 {[%clk 0:03:01.3]} 6... b5 {[%clk 0:02:53.2]}
7. cxb5 {[%clk 0:02:59.6]} 7... a6 {[%clk 0:02:45.3]} 8. O-O {[%clk 0:02:58.5]}
8... axb5 {[%clk 0:02:45.3]} 9. Bxb5 {[%clk 0:02:59.4]} 9... Qa5 {[%clk
0:02:43.3]} 10. a4 {[%clk 0:02:50.1]} 10... Ba6 {[%clk 0:02:30.8]} 11. Ra3
{[%clk 0:02:45.2]} 11... d6 {[%clk 0:02:27.5]} 12. Nc3 {[%clk 0:02:39.3]} 12...
Nbd7 {[%clk 0:02:23.7]} 13. Bd2 {[%clk 0:02:32]} 13... Qb6 {[%clk 0:02:06.7]}
14. Bxa6 {[%clk 0:02:18.8]} 14... Rxa6 {[%clk 0:02:03.7]} 15. Rb3 {[%clk
0:02:17.9]} 15... Qc7 {[%clk 0:02:01.9]} 16. Qe2 {[%clk 0:02:11.3]} 16... Rfa8
{[%clk 0:02:00.7]} 17. e4 {[%clk 0:01:50.3]} 17... Ng4 {[%clk 0:01:56.5]} 18.
Nb5 {[%clk 0:01:31.6]} 18... Qc8 {[%clk 0:01:52.8]} 19. a5 {[%clk 0:01:31.2]}
19... Nge5 {[%clk 0:01:30.4]} 20. Nxe5 {[%clk 0:01:31.1]} 20... Nxe5 {[%clk
0:01:30.3]} 21. Na3 {[%clk 0:01:29.8]} 21... e6 {[%clk 0:01:00.7]} 22. dxe6
{[%clk 0:01:25.4]} 22... Qxe6 {[%clk 0:00:58.7]} 23. Rb7 {[%clk 0:01:17.9]}
23... Qc8 {[%clk 0:00:45.9]} 24. Rb5 {[%clk 0:01:14.2]} 24... Nc6 {[%clk
0:00:40.3]} 25. Bc3 {[%clk 0:01:02]} 25... Bxc3 {[%clk 0:00:29.9]} 26. bxc3
{[%clk 0:01:02.9]} 26... Nxa5 {[%clk 0:00:28.8]} 27. h4 {[%clk 0:00:57]} 27...
h5 {[%clk 0:00:28]} 28. Rd1 {[%clk 0:00:56.3]} 28... Qe6 {[%clk 0:00:27.3]} 29.
Qf3 {[%clk 0:00:49.6]} 29... Nc6 {[%clk 0:00:25.5]} 30. Nc2 {[%clk 0:00:47.2]}
30... Ne5 {[%clk 0:00:23.3]} 31. Qg3 {[%clk 0:00:46.1]} 31... Ng4 {[%clk
0:00:20.3]} 32. Ne3 {[%clk 0:00:43.4]} 32... Qxe4 {[%clk 0:00:18.6]} 33. Nd5
{[%clk 0:00:38.4]} 33... Ra1 {[%clk 0:00:14.5]} 34. Qxg4 {[%clk 0:00:11.4]}
34... Qxg4 {[%clk 0:00:13.1]} 35. Nf6+ {[%clk 0:00:11.2]} 35... Kg7 {[%clk
0:00:13.1]} 36. Nxg4 {[%clk 0:00:10.8]} 36... Rxd1+ {[%clk 0:00:13]} 37. Kh2
{[%clk 0:00:11.6]} 0-1